{"text_format":"3","workbook":"xlsx","n_sheets":5,"sheets":["Hoá đơn","Khách hàng","Hóa đơn - Chính","Chi tiết hóa đơn","Giới thiệu về Bảng theo dõi..."],"not_rendered":{"defined_names":8},"read":"whole","date_system":"1900"}

{"sheet":"Hoá đơn","index":0,"n_rows":39,"n_cols":7,"rows_kept":39,"merged":[[1,1,1,2],[1,3,1,4],[1,5,1,6],[2,1,2,2],[2,3,2,4],[2,5,2,6],[3,3,3,4],[4,3,4,4],[5,3,5,4],[37,1,37,4],[38,1,38,4]]}
[null,"Tên công ty"]
[null,"Địa chỉ Đường",null,"ĐT: Số Điện thoại",null,"Email"]
[null,"Mã ZIP Thành phố, Tiểu bang",null,"F: Số Fax",null,"Trang web"]
[null,"Người nhận Hóa đơn:",{"$f":"IFERROR(VLOOKUP(VLOOKUP(rngInvoice,Hoá_đơn_Chính[],2,FALSE),Danh_sách_khách_hàng[],3,TRUE),\"\")","v":"Contoso, Ltd"},{"$f":"\"Điện thoại: \"&IFERROR(VLOOKUP(VLOOKUP(rngInvoice,Hoá_đơn_Chính[],2,FALSE),Danh_sách_khách_hàng[],9,FALSE),\"\")","v":"Điện thoại: 432-555-0189"},null,"Mã số hóa đơn","3-456-2"]
[null,"Địa chỉ:",{"$f":"IFERROR(IF((VLOOKUP(VLOOKUP(rngInvoice,Hoá_đơn_Chính[],2,FALSE),Danh_sách_khách_hàng[],5,FALSE))=\"\",\"\",(VLOOKUP(VLOOKUP(rngInvoice,Hoá_đơn_Chính[],2,FALSE),Danh_sách_khách_hàng[],5,FALSE))),\"\")","v":"567 Walnut Lane"},{"$f":"\"Fax:           \"&IFERROR(VLOOKUP(VLOOKUP(rngInvoice,Hoá_đơn_Chính[],2,FALSE),Danh_sách_khách_hàng[],11,FALSE),\"\")","v":"Fax:           432-555-0123"},null,"Ngày lập Hóa đơn:",{"$f":"IFERROR(IF(VLOOKUP(rngInvoice,Hoá_đơn_Chính[],3,FALSE)=\"\",\"\",VLOOKUP(rngInvoice,Hoá_đơn_Chính[],3,FALSE)),\"\")","v":{"v":43685,"d":"4368500.00%"}}]
[null,null,{"$f":"IFERROR(VLOOKUP(VLOOKUP(rngInvoice,Hoá_đơn_Chính[],2,FALSE),Danh_sách_khách_hàng[],6,FALSE)&\", \"& VLOOKUP(VLOOKUP(G4,Hoá_đơn_Chính[],2,FALSE),Danh_sách_khách_hàng[],7,FALSE)&\" \"&VLOOKUP(VLOOKUP(G4,Hoá_đơn_Chính[],2,FALSE),Danh_sách_khách_hàng[],8,FALSE),\"\")","v":"Moline, MO 098765"},{"$f":"\"Email: \"&IFERROR(VLOOKUP(VLOOKUP(rngInvoice,Hoá_đơn_Chính[],2,FALSE),Danh_sách_khách_hàng[],10,FALSE),\"\")","v":"Email: someone@example.com"}]
[null,{"$f":"\"Hóa đơn cho: \"&IFERROR(VLOOKUP(rngInvoice,Hoá_đơn_Chính[],4),\"\")","v":"Hóa đơn cho: Dự án 2"}]
[null,"Số khoản mục","Mô tả","SL","Đơn Giá","Chiết khấu","Giá"]
[null,{"$f":"IFERROR(INDEX(Chi_tiết_hóa_đơn[],SMALL(IF(Chi_tiết_hóa_đơn[Mã số hóa đơn]=rngInvoice,ROW(Chi_tiết_hóa_đơn[])-ROW(Chi_tiết_hóa_đơn[#Headers])), ROW(1:1)), MATCH($B$8, Chi_tiết_hóa_đơn[#Headers], 0)),\"\")","v":"Z4567"},{"$f":"IFERROR(INDEX(Chi_tiết_hóa_đơn[],SMALL(IF(Chi_tiết_hóa_đơn[Mã số hóa đơn]=rngInvoice,ROW(Chi_tiết_hóa_đơn[])-ROW(Chi_tiết_hóa_đơn[#Headers])), ROW(1:1)), MATCH($C$8, Chi_tiết_hóa_đơn[#Headers], 0)),\"\")","v":"Hóa đơn 3-456-2 Dữ liệu 1"},{"$f":"IFERROR(INDEX(Chi_tiết_hóa_đơn[],SMALL(IF(Chi_tiết_hóa_đơn[Mã số hóa đơn]=rngInvoice,ROW(Chi_tiết_hóa_đơn[])-ROW(Chi_tiết_hóa_đơn[#Headers])), ROW(1:1)), MATCH($D$8, Chi_tiết_hóa_đơn[#Headers], 0)),\"\")","v":39},{"$f":"IFERROR(INDEX(Chi_tiết_hóa_đơn[],SMALL(IF(Chi_tiết_hóa_đơn[Mã số hóa đơn]=rngInvoice,ROW(Chi_tiết_hóa_đơn[])-ROW(Chi_tiết_hóa_đơn[#Headers])), ROW(1:1)), MATCH($E$8, Chi_tiết_hóa_đơn[#Headers], 0)),\"\")","v":{"v":5,"d":"5.00 ₫"}},{"$f":"IFERROR(INDEX(Chi_tiết_hóa_đơn[],SMALL(IF(Chi_tiết_hóa_đơn[Mã số hóa đơn]=rngInvoice,ROW(Chi_tiết_hóa_đơn[])-ROW(Chi_tiết_hóa_đơn[#Headers])), ROW(1:1)), MATCH($F$8, Chi_tiết_hóa_đơn[#Headers], 0)),\"\")","v":0},{"$f":"IFERROR((D9*E9)-F9,\"\")","v":{"v":195,"d":"195.00 ₫"}}]
[null,{"$f":"IFERROR(INDEX(Chi_tiết_hóa_đơn[],SMALL(IF(Chi_tiết_hóa_đơn[Mã số hóa đơn]=rngInvoice,ROW(Chi_tiết_hóa_đơn[])-ROW(Chi_tiết_hóa_đơn[#Headers])), ROW(2:2)), MATCH($B$8, Chi_tiết_hóa_đơn[#Headers], 0)),\"\")","v":"Z4568"},{"$f":"IFERROR(INDEX(Chi_tiết_hóa_đơn[],SMALL(IF(Chi_tiết_hóa_đơn[Mã số hóa đơn]=rngInvoice,ROW(Chi_tiết_hóa_đơn[])-ROW(Chi_tiết_hóa_đơn[#Headers])), ROW(2:2)), MATCH($C$8, Chi_tiết_hóa_đơn[#Headers], 0)),\"\")","v":"Hóa đơn 3-456-2 Dữ liệu 2"},{"$f":"IFERROR(INDEX(Chi_tiết_hóa_đơn[],SMALL(IF(Chi_tiết_hóa_đơn[Mã số hóa đơn]=rngInvoice,ROW(Chi_tiết_hóa_đơn[])-ROW(Chi_tiết_hóa_đơn[#Headers])), ROW(2:2)), MATCH($D$8, Chi_tiết_hóa_đơn[#Headers], 0)),\"\")","v":40},{"$f":"IFERROR(INDEX(Chi_tiết_hóa_đơn[],SMALL(IF(Chi_tiết_hóa_đơn[Mã số hóa đơn]=rngInvoice,ROW(Chi_tiết_hóa_đơn[])-ROW(Chi_tiết_hóa_đơn[#Headers])), ROW(2:2)), MATCH($E$8, Chi_tiết_hóa_đơn[#Headers], 0)),\"\")","v":{"v":4,"d":"4.00 ₫"}},{"$f":"IFERROR(INDEX(Chi_tiết_hóa_đơn[],SMALL(IF(Chi_tiết_hóa_đơn[Mã số hóa đơn]=rngInvoice,ROW(Chi_tiết_hóa_đơn[])-ROW(Chi_tiết_hóa_đơn[#Headers])), ROW(2:2)), MATCH($F$8, Chi_tiết_hóa_đơn[#Headers], 0)),\"\")","v":{"v":5,"d":"5.00 ₫"}},{"v":155,"d":"155.00 ₫"}]
[null,{"$f":"IFERROR(INDEX(Chi_tiết_hóa_đơn[],SMALL(IF(Chi_tiết_hóa_đơn[Mã số hóa đơn]=rngInvoice,ROW(Chi_tiết_hóa_đơn[])-ROW(Chi_tiết_hóa_đơn[#Headers])), ROW(3:3)), MATCH($B$8, Chi_tiết_hóa_đơn[#Headers], 0)),\"\")","v":"Z4569"},{"$f":"IFERROR(INDEX(Chi_tiết_hóa_đơn[],SMALL(IF(Chi_tiết_hóa_đơn[Mã số hóa đơn]=rngInvoice,ROW(Chi_tiết_hóa_đơn[])-ROW(Chi_tiết_hóa_đơn[#Headers])), ROW(3:3)), MATCH($C$8, Chi_tiết_hóa_đơn[#Headers], 0)),\"\")","v":"Hóa đơn 3-456-2 Dữ liệu 3"},{"$f":"IFERROR(INDEX(Chi_tiết_hóa_đơn[],SMALL(IF(Chi_tiết_hóa_đơn[Mã số hóa đơn]=rngInvoice,ROW(Chi_tiết_hóa_đơn[])-ROW(Chi_tiết_hóa_đơn[#Headers])), ROW(3:3)), MATCH($D$8, Chi_tiết_hóa_đơn[#Headers], 0)),\"\")","v":30},{"$f":"IFERROR(INDEX(Chi_tiết_hóa_đơn[],SMALL(IF(Chi_tiết_hóa_đơn[Mã số hóa đơn]=rngInvoice,ROW(Chi_tiết_hóa_đơn[])-ROW(Chi_tiết_hóa_đơn[#Headers])), ROW(3:3)), MATCH($E$8, Chi_tiết_hóa_đơn[#Headers], 0)),\"\")","v":{"v":6,"d":"6.00 ₫"}},{"$f":"IFERROR(INDEX(Chi_tiết_hóa_đơn[],SMALL(IF(Chi_tiết_hóa_đơn[Mã số hóa đơn]=rngInvoice,ROW(Chi_tiết_hóa_đơn[])-ROW(Chi_tiết_hóa_đơn[#Headers])), ROW(3:3)), MATCH($F$8, Chi_tiết_hóa_đơn[#Headers], 0)),\"\")","v":{"v":7,"d":"7.00 ₫"}},{"$f":"IFERROR((D11*E11)-F11,\"\")","v":{"v":173,"d":"173.00 ₫"}}]
[null,{"$f":"IFERROR(INDEX(Chi_tiết_hóa_đơn[],SMALL(IF(Chi_tiết_hóa_đơn[Mã số hóa đơn]=rngInvoice,ROW(Chi_tiết_hóa_đơn[])-ROW(Chi_tiết_hóa_đơn[#Headers])), ROW(4:4)), MATCH($B$8, Chi_tiết_hóa_đơn[#Headers], 0)),\"\")","v":"Z4570"},{"$f":"IFERROR(INDEX(Chi_tiết_hóa_đơn[],SMALL(IF(Chi_tiết_hóa_đơn[Mã số hóa đơn]=rngInvoice,ROW(Chi_tiết_hóa_đơn[])-ROW(Chi_tiết_hóa_đơn[#Headers])), ROW(4:4)), MATCH($C$8, Chi_tiết_hóa_đơn[#Headers], 0)),\"\")","v":"Hóa đơn 3-456-2 Dữ liệu 4"},{"$f":"IFERROR(INDEX(Chi_tiết_hóa_đơn[],SMALL(IF(Chi_tiết_hóa_đơn[Mã số hóa đơn]=rngInvoice,ROW(Chi_tiết_hóa_đơn[])-ROW(Chi_tiết_hóa_đơn[#Headers])), ROW(4:4)), MATCH($D$8, Chi_tiết_hóa_đơn[#Headers], 0)),\"\")","v":40},{"$f":"IFERROR(INDEX(Chi_tiết_hóa_đơn[],SMALL(IF(Chi_tiết_hóa_đơn[Mã số hóa đơn]=rngInvoice,ROW(Chi_tiết_hóa_đơn[])-ROW(Chi_tiết_hóa_đơn[#Headers])), ROW(4:4)), MATCH($E$8, Chi_tiết_hóa_đơn[#Headers], 0)),\"\")","v":{"v":7,"d":"7.00 ₫"}},{"$f":"IFERROR(INDEX(Chi_tiết_hóa_đơn[],SMALL(IF(Chi_tiết_hóa_đơn[Mã số hóa đơn]=rngInvoice,ROW(Chi_tiết_hóa_đơn[])-ROW(Chi_tiết_hóa_đơn[#Headers])), ROW(4:4)), MATCH($F$8, Chi_tiết_hóa_đơn[#Headers], 0)),\"\")","v":0},{"v":280,"d":"280.00 ₫"}]
[null,{"$f":"IFERROR(INDEX(Chi_tiết_hóa_đơn[],SMALL(IF(Chi_tiết_hóa_đơn[Mã số hóa đơn]=rngInvoice,ROW(Chi_tiết_hóa_đơn[])-ROW(Chi_tiết_hóa_đơn[#Headers])), ROW(5:5)), MATCH($B$8, Chi_tiết_hóa_đơn[#Headers], 0)),\"\")","v":"Z4571"},{"$f":"IFERROR(INDEX(Chi_tiết_hóa_đơn[],SMALL(IF(Chi_tiết_hóa_đơn[Mã số hóa đơn]=rngInvoice,ROW(Chi_tiết_hóa_đơn[])-ROW(Chi_tiết_hóa_đơn[#Headers])), ROW(5:5)), MATCH($C$8, Chi_tiết_hóa_đơn[#Headers], 0)),\"\")","v":"Hóa đơn 3-456-2 Dữ liệu 5"},{"$f":"IFERROR(INDEX(Chi_tiết_hóa_đơn[],SMALL(IF(Chi_tiết_hóa_đơn[Mã số hóa đơn]=rngInvoice,ROW(Chi_tiết_hóa_đơn[])-ROW(Chi_tiết_hóa_đơn[#Headers])), ROW(5:5)), MATCH($D$8, Chi_tiết_hóa_đơn[#Headers], 0)),\"\")","v":10},{"$f":"IFERROR(INDEX(Chi_tiết_hóa_đơn[],SMALL(IF(Chi_tiết_hóa_đơn[Mã số hóa đơn]=rngInvoice,ROW(Chi_tiết_hóa_đơn[])-ROW(Chi_tiết_hóa_đơn[#Headers])), ROW(5:5)), MATCH($E$8, Chi_tiết_hóa_đơn[#Headers], 0)),\"\")","v":{"v":4,"d":"4.00 ₫"}},{"$f":"IFERROR(INDEX(Chi_tiết_hóa_đơn[],SMALL(IF(Chi_tiết_hóa_đơn[Mã số hóa đơn]=rngInvoice,ROW(Chi_tiết_hóa_đơn[])-ROW(Chi_tiết_hóa_đơn[#Headers])), ROW(5:5)), MATCH($F$8, Chi_tiết_hóa_đơn[#Headers], 0)),\"\")","v":0},{"v":40,"d":"40.00 ₫"}]
[null,{"$f":"IFERROR(INDEX(Chi_tiết_hóa_đơn[],SMALL(IF(Chi_tiết_hóa_đơn[Mã số hóa đơn]=rngInvoice,ROW(Chi_tiết_hóa_đơn[])-ROW(Chi_tiết_hóa_đơn[#Headers])), ROW(6:6)), MATCH($B$8, Chi_tiết_hóa_đơn[#Headers], 0)),\"\")","v":"Z4572"},{"$f":"IFERROR(INDEX(Chi_tiết_hóa_đơn[],SMALL(IF(Chi_tiết_hóa_đơn[Mã số hóa đơn]=rngInvoice,ROW(Chi_tiết_hóa_đơn[])-ROW(Chi_tiết_hóa_đơn[#Headers])), ROW(6:6)), MATCH($C$8, Chi_tiết_hóa_đơn[#Headers], 0)),\"\")","v":"Hóa đơn 3-456-2 Dữ liệu 6"},{"$f":"IFERROR(INDEX(Chi_tiết_hóa_đơn[],SMALL(IF(Chi_tiết_hóa_đơn[Mã số hóa đơn]=rngInvoice,ROW(Chi_tiết_hóa_đơn[])-ROW(Chi_tiết_hóa_đơn[#Headers])), ROW(6:6)), MATCH($D$8, Chi_tiết_hóa_đơn[#Headers], 0)),\"\")","v":5},{"$f":"IFERROR(INDEX(Chi_tiết_hóa_đơn[],SMALL(IF(Chi_tiết_hóa_đơn[Mã số hóa đơn]=rngInvoice,ROW(Chi_tiết_hóa_đơn[])-ROW(Chi_tiết_hóa_đơn[#Headers])), ROW(6:6)), MATCH($E$8, Chi_tiết_hóa_đơn[#Headers], 0)),\"\")","v":{"v":8,"d":"8.00 ₫"}},{"$f":"IFERROR(INDEX(Chi_tiết_hóa_đơn[],SMALL(IF(Chi_tiết_hóa_đơn[Mã số hóa đơn]=rngInvoice,ROW(Chi_tiết_hóa_đơn[])-ROW(Chi_tiết_hóa_đơn[#Headers])), ROW(6:6)), MATCH($F$8, Chi_tiết_hóa_đơn[#Headers], 0)),\"\")","v":0},{"v":40,"d":"40.00 ₫"}]
[null,{"$f":"IFERROR(INDEX(Chi_tiết_hóa_đơn[],SMALL(IF(Chi_tiết_hóa_đơn[Mã số hóa đơn]=rngInvoice,ROW(Chi_tiết_hóa_đơn[])-ROW(Chi_tiết_hóa_đơn[#Headers])), ROW(7:7)), MATCH($B$8, Chi_tiết_hóa_đơn[#Headers], 0)),\"\")","v":"Z4573"},{"$f":"IFERROR(INDEX(Chi_tiết_hóa_đơn[],SMALL(IF(Chi_tiết_hóa_đơn[Mã số hóa đơn]=rngInvoice,ROW(Chi_tiết_hóa_đơn[])-ROW(Chi_tiết_hóa_đơn[#Headers])), ROW(7:7)), MATCH($C$8, Chi_tiết_hóa_đơn[#Headers], 0)),\"\")","v":"Hóa đơn 3-456-2 Dữ liệu 7"},{"$f":"IFERROR(INDEX(Chi_tiết_hóa_đơn[],SMALL(IF(Chi_tiết_hóa_đơn[Mã số hóa đơn]=rngInvoice,ROW(Chi_tiết_hóa_đơn[])-ROW(Chi_tiết_hóa_đơn[#Headers])), ROW(7:7)), MATCH($D$8, Chi_tiết_hóa_đơn[#Headers], 0)),\"\")","v":70},{"$f":"IFERROR(INDEX(Chi_tiết_hóa_đơn[],SMALL(IF(Chi_tiết_hóa_đơn[Mã số hóa đơn]=rngInvoice,ROW(Chi_tiết_hóa_đơn[])-ROW(Chi_tiết_hóa_đơn[#Headers])), ROW(7:7)), MATCH($E$8, Chi_tiết_hóa_đơn[#Headers], 0)),\"\")","v":{"v":6,"d":"6.00 ₫"}},{"$f":"IFERROR(INDEX(Chi_tiết_hóa_đơn[],SMALL(IF(Chi_tiết_hóa_đơn[Mã số hóa đơn]=rngInvoice,ROW(Chi_tiết_hóa_đơn[])-ROW(Chi_tiết_hóa_đơn[#Headers])), ROW(7:7)), MATCH($F$8, Chi_tiết_hóa_đơn[#Headers], 0)),\"\")","v":0},{"v":420,"d":"420.00 ₫"}]
[null,{"$f":"IFERROR(INDEX(Chi_tiết_hóa_đơn[],SMALL(IF(Chi_tiết_hóa_đơn[Mã số hóa đơn]=rngInvoice,ROW(Chi_tiết_hóa_đơn[])-ROW(Chi_tiết_hóa_đơn[#Headers])), ROW(8:8)), MATCH($B$8, Chi_tiết_hóa_đơn[#Headers], 0)),\"\")","v":"Z4574"},{"$f":"IFERROR(INDEX(Chi_tiết_hóa_đơn[],SMALL(IF(Chi_tiết_hóa_đơn[Mã số hóa đơn]=rngInvoice,ROW(Chi_tiết_hóa_đơn[])-ROW(Chi_tiết_hóa_đơn[#Headers])), ROW(8:8)), MATCH($C$8, Chi_tiết_hóa_đơn[#Headers], 0)),\"\")","v":"Hóa đơn 3-456-2 Dữ liệu 8"},{"$f":"IFERROR(INDEX(Chi_tiết_hóa_đơn[],SMALL(IF(Chi_tiết_hóa_đơn[Mã số hóa đơn]=rngInvoice,ROW(Chi_tiết_hóa_đơn[])-ROW(Chi_tiết_hóa_đơn[#Headers])), ROW(8:8)), MATCH($D$8, Chi_tiết_hóa_đơn[#Headers], 0)),\"\")","v":25},{"$f":"IFERROR(INDEX(Chi_tiết_hóa_đơn[],SMALL(IF(Chi_tiết_hóa_đơn[Mã số hóa đơn]=rngInvoice,ROW(Chi_tiết_hóa_đơn[])-ROW(Chi_tiết_hóa_đơn[#Headers])), ROW(8:8)), MATCH($E$8, Chi_tiết_hóa_đơn[#Headers], 0)),\"\")","v":{"v":4,"d":"4.00 ₫"}},{"$f":"IFERROR(INDEX(Chi_tiết_hóa_đơn[],SMALL(IF(Chi_tiết_hóa_đơn[Mã số hóa đơn]=rngInvoice,ROW(Chi_tiết_hóa_đơn[])-ROW(Chi_tiết_hóa_đơn[#Headers])), ROW(8:8)), MATCH($F$8, Chi_tiết_hóa_đơn[#Headers], 0)),\"\")","v":0},{"v":100,"d":"100.00 ₫"}]
[null,{"$f":"IFERROR(INDEX(Chi_tiết_hóa_đơn[],SMALL(IF(Chi_tiết_hóa_đơn[Mã số hóa đơn]=rngInvoice,ROW(Chi_tiết_hóa_đơn[])-ROW(Chi_tiết_hóa_đơn[#Headers])), ROW(9:9)), MATCH($B$8, Chi_tiết_hóa_đơn[#Headers], 0)),\"\")","v":"Z4575"},{"$f":"IFERROR(INDEX(Chi_tiết_hóa_đơn[],SMALL(IF(Chi_tiết_hóa_đơn[Mã số hóa đơn]=rngInvoice,ROW(Chi_tiết_hóa_đơn[])-ROW(Chi_tiết_hóa_đơn[#Headers])), ROW(9:9)), MATCH($C$8, Chi_tiết_hóa_đơn[#Headers], 0)),\"\")","v":"Hóa đơn 3-456-2 Dữ liệu 9"},{"$f":"IFERROR(INDEX(Chi_tiết_hóa_đơn[],SMALL(IF(Chi_tiết_hóa_đơn[Mã số hóa đơn]=rngInvoice,ROW(Chi_tiết_hóa_đơn[])-ROW(Chi_tiết_hóa_đơn[#Headers])), ROW(9:9)), MATCH($D$8, Chi_tiết_hóa_đơn[#Headers], 0)),\"\")","v":5},{"$f":"IFERROR(INDEX(Chi_tiết_hóa_đơn[],SMALL(IF(Chi_tiết_hóa_đơn[Mã số hóa đơn]=rngInvoice,ROW(Chi_tiết_hóa_đơn[])-ROW(Chi_tiết_hóa_đơn[#Headers])), ROW(9:9)), MATCH($E$8, Chi_tiết_hóa_đơn[#Headers], 0)),\"\")","v":{"v":7,"d":"7.00 ₫"}},{"$f":"IFERROR(INDEX(Chi_tiết_hóa_đơn[],SMALL(IF(Chi_tiết_hóa_đơn[Mã số hóa đơn]=rngInvoice,ROW(Chi_tiết_hóa_đơn[])-ROW(Chi_tiết_hóa_đơn[#Headers])), ROW(9:9)), MATCH($F$8, Chi_tiết_hóa_đơn[#Headers], 0)),\"\")","v":{"v":3,"d":"3.00 ₫"}},{"v":32,"d":"32.00 ₫"}]
[null,{"$f":"IFERROR(INDEX(Chi_tiết_hóa_đơn[],SMALL(IF(Chi_tiết_hóa_đơn[Mã số hóa đơn]=rngInvoice,ROW(Chi_tiết_hóa_đơn[])-ROW(Chi_tiết_hóa_đơn[#Headers])), ROW(10:10)), MATCH($B$8, Chi_tiết_hóa_đơn[#Headers], 0)),\"\")","v":"Z4576"},{"$f":"IFERROR(INDEX(Chi_tiết_hóa_đơn[],SMALL(IF(Chi_tiết_hóa_đơn[Mã số hóa đơn]=rngInvoice,ROW(Chi_tiết_hóa_đơn[])-ROW(Chi_tiết_hóa_đơn[#Headers])), ROW(10:10)), MATCH($C$8, Chi_tiết_hóa_đơn[#Headers], 0)),\"\")","v":"Hóa đơn 3-456-2 Dữ liệu 10"},{"$f":"IFERROR(INDEX(Chi_tiết_hóa_đơn[],SMALL(IF(Chi_tiết_hóa_đơn[Mã số hóa đơn]=rngInvoice,ROW(Chi_tiết_hóa_đơn[])-ROW(Chi_tiết_hóa_đơn[#Headers])), ROW(10:10)), MATCH($D$8, Chi_tiết_hóa_đơn[#Headers], 0)),\"\")","v":80},{"$f":"IFERROR(INDEX(Chi_tiết_hóa_đơn[],SMALL(IF(Chi_tiết_hóa_đơn[Mã số hóa đơn]=rngInvoice,ROW(Chi_tiết_hóa_đơn[])-ROW(Chi_tiết_hóa_đơn[#Headers])), ROW(10:10)), MATCH($E$8, Chi_tiết_hóa_đơn[#Headers], 0)),\"\")","v":{"v":1,"d":"1.00 ₫"}},{"$f":"IFERROR(INDEX(Chi_tiết_hóa_đơn[],SMALL(IF(Chi_tiết_hóa_đơn[Mã số hóa đơn]=rngInvoice,ROW(Chi_tiết_hóa_đơn[])-ROW(Chi_tiết_hóa_đơn[#Headers])), ROW(10:10)), MATCH($F$8, Chi_tiết_hóa_đơn[#Headers], 0)),\"\")","v":0},{"v":80,"d":"80.00 ₫"}]
[null,{"$f":"IFERROR(INDEX(Chi_tiết_hóa_đơn[],SMALL(IF(Chi_tiết_hóa_đơn[Mã số hóa đơn]=rngInvoice,ROW(Chi_tiết_hóa_đơn[])-ROW(Chi_tiết_hóa_đơn[#Headers])), ROW(11:11)), MATCH($B$8, Chi_tiết_hóa_đơn[#Headers], 0)),\"\")","v":"Z4577"},{"$f":"IFERROR(INDEX(Chi_tiết_hóa_đơn[],SMALL(IF(Chi_tiết_hóa_đơn[Mã số hóa đơn]=rngInvoice,ROW(Chi_tiết_hóa_đơn[])-ROW(Chi_tiết_hóa_đơn[#Headers])), ROW(11:11)), MATCH($C$8, Chi_tiết_hóa_đơn[#Headers], 0)),\"\")","v":"Hóa đơn 3-456-2 Dữ liệu 11"},{"$f":"IFERROR(INDEX(Chi_tiết_hóa_đơn[],SMALL(IF(Chi_tiết_hóa_đơn[Mã số hóa đơn]=rngInvoice,ROW(Chi_tiết_hóa_đơn[])-ROW(Chi_tiết_hóa_đơn[#Headers])), ROW(11:11)), MATCH($D$8, Chi_tiết_hóa_đơn[#Headers], 0)),\"\")","v":65},{"$f":"IFERROR(INDEX(Chi_tiết_hóa_đơn[],SMALL(IF(Chi_tiết_hóa_đơn[Mã số hóa đơn]=rngInvoice,ROW(Chi_tiết_hóa_đơn[])-ROW(Chi_tiết_hóa_đơn[#Headers])), ROW(11:11)), MATCH($E$8, Chi_tiết_hóa_đơn[#Headers], 0)),\"\")","v":{"v":7,"d":"7.00 ₫"}},{"$f":"IFERROR(INDEX(Chi_tiết_hóa_đơn[],SMALL(IF(Chi_tiết_hóa_đơn[Mã số hóa đơn]=rngInvoice,ROW(Chi_tiết_hóa_đơn[])-ROW(Chi_tiết_hóa_đơn[#Headers])), ROW(11:11)), MATCH($F$8, Chi_tiết_hóa_đơn[#Headers], 0)),\"\")","v":0},{"v":455,"d":"455.00 ₫"}]
[null,{"$f":"IFERROR(INDEX(Chi_tiết_hóa_đơn[],SMALL(IF(Chi_tiết_hóa_đơn[Mã số hóa đơn]=rngInvoice,ROW(Chi_tiết_hóa_đơn[])-ROW(Chi_tiết_hóa_đơn[#Headers])), ROW(12:12)), MATCH($B$8, Chi_tiết_hóa_đơn[#Headers], 0)),\"\")","v":"Z4578"},{"$f":"IFERROR(INDEX(Chi_tiết_hóa_đơn[],SMALL(IF(Chi_tiết_hóa_đơn[Mã số hóa đơn]=rngInvoice,ROW(Chi_tiết_hóa_đơn[])-ROW(Chi_tiết_hóa_đơn[#Headers])), ROW(12:12)), MATCH($C$8, Chi_tiết_hóa_đơn[#Headers], 0)),\"\")","v":"Hóa đơn 3-456-2 Dữ liệu 12"},{"$f":"IFERROR(INDEX(Chi_tiết_hóa_đơn[],SMALL(IF(Chi_tiết_hóa_đơn[Mã số hóa đơn]=rngInvoice,ROW(Chi_tiết_hóa_đơn[])-ROW(Chi_tiết_hóa_đơn[#Headers])), ROW(12:12)), MATCH($D$8, Chi_tiết_hóa_đơn[#Headers], 0)),\"\")","v":44},{"$f":"IFERROR(INDEX(Chi_tiết_hóa_đơn[],SMALL(IF(Chi_tiết_hóa_đơn[Mã số hóa đơn]=rngInvoice,ROW(Chi_tiết_hóa_đơn[])-ROW(Chi_tiết_hóa_đơn[#Headers])), ROW(12:12)), MATCH($E$8, Chi_tiết_hóa_đơn[#Headers], 0)),\"\")","v":{"v":1,"d":"1.00 ₫"}},{"$f":"IFERROR(INDEX(Chi_tiết_hóa_đơn[],SMALL(IF(Chi_tiết_hóa_đơn[Mã số hóa đơn]=rngInvoice,ROW(Chi_tiết_hóa_đơn[])-ROW(Chi_tiết_hóa_đơn[#Headers])), ROW(12:12)), MATCH($F$8, Chi_tiết_hóa_đơn[#Headers], 0)),\"\")","v":0},{"v":44,"d":"44.00 ₫"}]
[null,{"$f":"IFERROR(INDEX(Chi_tiết_hóa_đơn[],SMALL(IF(Chi_tiết_hóa_đơn[Mã số hóa đơn]=rngInvoice,ROW(Chi_tiết_hóa_đơn[])-ROW(Chi_tiết_hóa_đơn[#Headers])), ROW(13:13)), MATCH($B$8, Chi_tiết_hóa_đơn[#Headers], 0)),\"\")","v":""},{"$f":"IFERROR(INDEX(Chi_tiết_hóa_đơn[],SMALL(IF(Chi_tiết_hóa_đơn[Mã số hóa đơn]=rngInvoice,ROW(Chi_tiết_hóa_đơn[])-ROW(Chi_tiết_hóa_đơn[#Headers])), ROW(13:13)), MATCH($C$8, Chi_tiết_hóa_đơn[#Headers], 0)),\"\")","v":""},{"$f":"IFERROR(INDEX(Chi_tiết_hóa_đơn[],SMALL(IF(Chi_tiết_hóa_đơn[Mã số hóa đơn]=rngInvoice,ROW(Chi_tiết_hóa_đơn[])-ROW(Chi_tiết_hóa_đơn[#Headers])), ROW(13:13)), MATCH($D$8, Chi_tiết_hóa_đơn[#Headers], 0)),\"\")","v":""},{"$f":"IFERROR(INDEX(Chi_tiết_hóa_đơn[],SMALL(IF(Chi_tiết_hóa_đơn[Mã số hóa đơn]=rngInvoice,ROW(Chi_tiết_hóa_đơn[])-ROW(Chi_tiết_hóa_đơn[#Headers])), ROW(13:13)), MATCH($E$8, Chi_tiết_hóa_đơn[#Headers], 0)),\"\")","v":""},{"$f":"IFERROR(INDEX(Chi_tiết_hóa_đơn[],SMALL(IF(Chi_tiết_hóa_đơn[Mã số hóa đơn]=rngInvoice,ROW(Chi_tiết_hóa_đơn[])-ROW(Chi_tiết_hóa_đơn[#Headers])), ROW(13:13)), MATCH($F$8, Chi_tiết_hóa_đơn[#Headers], 0)),\"\")","v":""},""]
[null,{"$f":"IFERROR(INDEX(Chi_tiết_hóa_đơn[],SMALL(IF(Chi_tiết_hóa_đơn[Mã số hóa đơn]=rngInvoice,ROW(Chi_tiết_hóa_đơn[])-ROW(Chi_tiết_hóa_đơn[#Headers])), ROW(14:14)), MATCH($B$8, Chi_tiết_hóa_đơn[#Headers], 0)),\"\")","v":""},{"$f":"IFERROR(INDEX(Chi_tiết_hóa_đơn[],SMALL(IF(Chi_tiết_hóa_đơn[Mã số hóa đơn]=rngInvoice,ROW(Chi_tiết_hóa_đơn[])-ROW(Chi_tiết_hóa_đơn[#Headers])), ROW(14:14)), MATCH($C$8, Chi_tiết_hóa_đơn[#Headers], 0)),\"\")","v":""},{"$f":"IFERROR(INDEX(Chi_tiết_hóa_đơn[],SMALL(IF(Chi_tiết_hóa_đơn[Mã số hóa đơn]=rngInvoice,ROW(Chi_tiết_hóa_đơn[])-ROW(Chi_tiết_hóa_đơn[#Headers])), ROW(14:14)), MATCH($D$8, Chi_tiết_hóa_đơn[#Headers], 0)),\"\")","v":""},{"$f":"IFERROR(INDEX(Chi_tiết_hóa_đơn[],SMALL(IF(Chi_tiết_hóa_đơn[Mã số hóa đơn]=rngInvoice,ROW(Chi_tiết_hóa_đơn[])-ROW(Chi_tiết_hóa_đơn[#Headers])), ROW(14:14)), MATCH($E$8, Chi_tiết_hóa_đơn[#Headers], 0)),\"\")","v":""},{"$f":"IFERROR(INDEX(Chi_tiết_hóa_đơn[],SMALL(IF(Chi_tiết_hóa_đơn[Mã số hóa đơn]=rngInvoice,ROW(Chi_tiết_hóa_đơn[])-ROW(Chi_tiết_hóa_đơn[#Headers])), ROW(14:14)), MATCH($F$8, Chi_tiết_hóa_đơn[#Headers], 0)),\"\")","v":""},""]
[null,{"$f":"IFERROR(INDEX(Chi_tiết_hóa_đơn[],SMALL(IF(Chi_tiết_hóa_đơn[Mã số hóa đơn]=rngInvoice,ROW(Chi_tiết_hóa_đơn[])-ROW(Chi_tiết_hóa_đơn[#Headers])), ROW(15:15)), MATCH($B$8, Chi_tiết_hóa_đơn[#Headers], 0)),\"\")","v":""},{"$f":"IFERROR(INDEX(Chi_tiết_hóa_đơn[],SMALL(IF(Chi_tiết_hóa_đơn[Mã số hóa đơn]=rngInvoice,ROW(Chi_tiết_hóa_đơn[])-ROW(Chi_tiết_hóa_đơn[#Headers])), ROW(15:15)), MATCH($C$8, Chi_tiết_hóa_đơn[#Headers], 0)),\"\")","v":""},{"$f":"IFERROR(INDEX(Chi_tiết_hóa_đơn[],SMALL(IF(Chi_tiết_hóa_đơn[Mã số hóa đơn]=rngInvoice,ROW(Chi_tiết_hóa_đơn[])-ROW(Chi_tiết_hóa_đơn[#Headers])), ROW(15:15)), MATCH($D$8, Chi_tiết_hóa_đơn[#Headers], 0)),\"\")","v":""},{"$f":"IFERROR(INDEX(Chi_tiết_hóa_đơn[],SMALL(IF(Chi_tiết_hóa_đơn[Mã số hóa đơn]=rngInvoice,ROW(Chi_tiết_hóa_đơn[])-ROW(Chi_tiết_hóa_đơn[#Headers])), ROW(15:15)), MATCH($E$8, Chi_tiết_hóa_đơn[#Headers], 0)),\"\")","v":""},{"$f":"IFERROR(INDEX(Chi_tiết_hóa_đơn[],SMALL(IF(Chi_tiết_hóa_đơn[Mã số hóa đơn]=rngInvoice,ROW(Chi_tiết_hóa_đơn[])-ROW(Chi_tiết_hóa_đơn[#Headers])), ROW(15:15)), MATCH($F$8, Chi_tiết_hóa_đơn[#Headers], 0)),\"\")","v":""},""]
[null,{"$f":"IFERROR(INDEX(Chi_tiết_hóa_đơn[],SMALL(IF(Chi_tiết_hóa_đơn[Mã số hóa đơn]=rngInvoice,ROW(Chi_tiết_hóa_đơn[])-ROW(Chi_tiết_hóa_đơn[#Headers])), ROW(16:16)), MATCH($B$8, Chi_tiết_hóa_đơn[#Headers], 0)),\"\")","v":""},{"$f":"IFERROR(INDEX(Chi_tiết_hóa_đơn[],SMALL(IF(Chi_tiết_hóa_đơn[Mã số hóa đơn]=rngInvoice,ROW(Chi_tiết_hóa_đơn[])-ROW(Chi_tiết_hóa_đơn[#Headers])), ROW(16:16)), MATCH($C$8, Chi_tiết_hóa_đơn[#Headers], 0)),\"\")","v":""},{"$f":"IFERROR(INDEX(Chi_tiết_hóa_đơn[],SMALL(IF(Chi_tiết_hóa_đơn[Mã số hóa đơn]=rngInvoice,ROW(Chi_tiết_hóa_đơn[])-ROW(Chi_tiết_hóa_đơn[#Headers])), ROW(16:16)), MATCH($D$8, Chi_tiết_hóa_đơn[#Headers], 0)),\"\")","v":""},{"$f":"IFERROR(INDEX(Chi_tiết_hóa_đơn[],SMALL(IF(Chi_tiết_hóa_đơn[Mã số hóa đơn]=rngInvoice,ROW(Chi_tiết_hóa_đơn[])-ROW(Chi_tiết_hóa_đơn[#Headers])), ROW(16:16)), MATCH($E$8, Chi_tiết_hóa_đơn[#Headers], 0)),\"\")","v":""},{"$f":"IFERROR(INDEX(Chi_tiết_hóa_đơn[],SMALL(IF(Chi_tiết_hóa_đơn[Mã số hóa đơn]=rngInvoice,ROW(Chi_tiết_hóa_đơn[])-ROW(Chi_tiết_hóa_đơn[#Headers])), ROW(16:16)), MATCH($F$8, Chi_tiết_hóa_đơn[#Headers], 0)),\"\")","v":""},""]
[null,{"$f":"IFERROR(INDEX(Chi_tiết_hóa_đơn[],SMALL(IF(Chi_tiết_hóa_đơn[Mã số hóa đơn]=rngInvoice,ROW(Chi_tiết_hóa_đơn[])-ROW(Chi_tiết_hóa_đơn[#Headers])), ROW(17:17)), MATCH($B$8, Chi_tiết_hóa_đơn[#Headers], 0)),\"\")","v":""},{"$f":"IFERROR(INDEX(Chi_tiết_hóa_đơn[],SMALL(IF(Chi_tiết_hóa_đơn[Mã số hóa đơn]=rngInvoice,ROW(Chi_tiết_hóa_đơn[])-ROW(Chi_tiết_hóa_đơn[#Headers])), ROW(17:17)), MATCH($C$8, Chi_tiết_hóa_đơn[#Headers], 0)),\"\")","v":""},{"$f":"IFERROR(INDEX(Chi_tiết_hóa_đơn[],SMALL(IF(Chi_tiết_hóa_đơn[Mã số hóa đơn]=rngInvoice,ROW(Chi_tiết_hóa_đơn[])-ROW(Chi_tiết_hóa_đơn[#Headers])), ROW(17:17)), MATCH($D$8, Chi_tiết_hóa_đơn[#Headers], 0)),\"\")","v":""},{"$f":"IFERROR(INDEX(Chi_tiết_hóa_đơn[],SMALL(IF(Chi_tiết_hóa_đơn[Mã số hóa đơn]=rngInvoice,ROW(Chi_tiết_hóa_đơn[])-ROW(Chi_tiết_hóa_đơn[#Headers])), ROW(17:17)), MATCH($E$8, Chi_tiết_hóa_đơn[#Headers], 0)),\"\")","v":""},{"$f":"IFERROR(INDEX(Chi_tiết_hóa_đơn[],SMALL(IF(Chi_tiết_hóa_đơn[Mã số hóa đơn]=rngInvoice,ROW(Chi_tiết_hóa_đơn[])-ROW(Chi_tiết_hóa_đơn[#Headers])), ROW(17:17)), MATCH($F$8, Chi_tiết_hóa_đơn[#Headers], 0)),\"\")","v":""},""]
[null,{"$f":"IFERROR(INDEX(Chi_tiết_hóa_đơn[],SMALL(IF(Chi_tiết_hóa_đơn[Mã số hóa đơn]=rngInvoice,ROW(Chi_tiết_hóa_đơn[])-ROW(Chi_tiết_hóa_đơn[#Headers])), ROW(18:18)), MATCH($B$8, Chi_tiết_hóa_đơn[#Headers], 0)),\"\")","v":""},{"$f":"IFERROR(INDEX(Chi_tiết_hóa_đơn[],SMALL(IF(Chi_tiết_hóa_đơn[Mã số hóa đơn]=rngInvoice,ROW(Chi_tiết_hóa_đơn[])-ROW(Chi_tiết_hóa_đơn[#Headers])), ROW(18:18)), MATCH($C$8, Chi_tiết_hóa_đơn[#Headers], 0)),\"\")","v":""},{"$f":"IFERROR(INDEX(Chi_tiết_hóa_đơn[],SMALL(IF(Chi_tiết_hóa_đơn[Mã số hóa đơn]=rngInvoice,ROW(Chi_tiết_hóa_đơn[])-ROW(Chi_tiết_hóa_đơn[#Headers])), ROW(18:18)), MATCH($D$8, Chi_tiết_hóa_đơn[#Headers], 0)),\"\")","v":""},{"$f":"IFERROR(INDEX(Chi_tiết_hóa_đơn[],SMALL(IF(Chi_tiết_hóa_đơn[Mã số hóa đơn]=rngInvoice,ROW(Chi_tiết_hóa_đơn[])-ROW(Chi_tiết_hóa_đơn[#Headers])), ROW(18:18)), MATCH($E$8, Chi_tiết_hóa_đơn[#Headers], 0)),\"\")","v":""},{"$f":"IFERROR(INDEX(Chi_tiết_hóa_đơn[],SMALL(IF(Chi_tiết_hóa_đơn[Mã số hóa đơn]=rngInvoice,ROW(Chi_tiết_hóa_đơn[])-ROW(Chi_tiết_hóa_đơn[#Headers])), ROW(18:18)), MATCH($F$8, Chi_tiết_hóa_đơn[#Headers], 0)),\"\")","v":""},""]
[null,{"$f":"IFERROR(INDEX(Chi_tiết_hóa_đơn[],SMALL(IF(Chi_tiết_hóa_đơn[Mã số hóa đơn]=rngInvoice,ROW(Chi_tiết_hóa_đơn[])-ROW(Chi_tiết_hóa_đơn[#Headers])), ROW(19:19)), MATCH($B$8, Chi_tiết_hóa_đơn[#Headers], 0)),\"\")","v":""},{"$f":"IFERROR(INDEX(Chi_tiết_hóa_đơn[],SMALL(IF(Chi_tiết_hóa_đơn[Mã số hóa đơn]=rngInvoice,ROW(Chi_tiết_hóa_đơn[])-ROW(Chi_tiết_hóa_đơn[#Headers])), ROW(19:19)), MATCH($C$8, Chi_tiết_hóa_đơn[#Headers], 0)),\"\")","v":""},{"$f":"IFERROR(INDEX(Chi_tiết_hóa_đơn[],SMALL(IF(Chi_tiết_hóa_đơn[Mã số hóa đơn]=rngInvoice,ROW(Chi_tiết_hóa_đơn[])-ROW(Chi_tiết_hóa_đơn[#Headers])), ROW(19:19)), MATCH($D$8, Chi_tiết_hóa_đơn[#Headers], 0)),\"\")","v":""},{"$f":"IFERROR(INDEX(Chi_tiết_hóa_đơn[],SMALL(IF(Chi_tiết_hóa_đơn[Mã số hóa đơn]=rngInvoice,ROW(Chi_tiết_hóa_đơn[])-ROW(Chi_tiết_hóa_đơn[#Headers])), ROW(19:19)), MATCH($E$8, Chi_tiết_hóa_đơn[#Headers], 0)),\"\")","v":""},{"$f":"IFERROR(INDEX(Chi_tiết_hóa_đơn[],SMALL(IF(Chi_tiết_hóa_đơn[Mã số hóa đơn]=rngInvoice,ROW(Chi_tiết_hóa_đơn[])-ROW(Chi_tiết_hóa_đơn[#Headers])), ROW(19:19)), MATCH($F$8, Chi_tiết_hóa_đơn[#Headers], 0)),\"\")","v":""},""]
[null,{"$f":"IFERROR(INDEX(Chi_tiết_hóa_đơn[],SMALL(IF(Chi_tiết_hóa_đơn[Mã số hóa đơn]=rngInvoice,ROW(Chi_tiết_hóa_đơn[])-ROW(Chi_tiết_hóa_đơn[#Headers])), ROW(20:20)), MATCH($B$8, Chi_tiết_hóa_đơn[#Headers], 0)),\"\")","v":""},{"$f":"IFERROR(INDEX(Chi_tiết_hóa_đơn[],SMALL(IF(Chi_tiết_hóa_đơn[Mã số hóa đơn]=rngInvoice,ROW(Chi_tiết_hóa_đơn[])-ROW(Chi_tiết_hóa_đơn[#Headers])), ROW(20:20)), MATCH($C$8, Chi_tiết_hóa_đơn[#Headers], 0)),\"\")","v":""},{"$f":"IFERROR(INDEX(Chi_tiết_hóa_đơn[],SMALL(IF(Chi_tiết_hóa_đơn[Mã số hóa đơn]=rngInvoice,ROW(Chi_tiết_hóa_đơn[])-ROW(Chi_tiết_hóa_đơn[#Headers])), ROW(20:20)), MATCH($D$8, Chi_tiết_hóa_đơn[#Headers], 0)),\"\")","v":""},{"$f":"IFERROR(INDEX(Chi_tiết_hóa_đơn[],SMALL(IF(Chi_tiết_hóa_đơn[Mã số hóa đơn]=rngInvoice,ROW(Chi_tiết_hóa_đơn[])-ROW(Chi_tiết_hóa_đơn[#Headers])), ROW(20:20)), MATCH($E$8, Chi_tiết_hóa_đơn[#Headers], 0)),\"\")","v":""},{"$f":"IFERROR(INDEX(Chi_tiết_hóa_đơn[],SMALL(IF(Chi_tiết_hóa_đơn[Mã số hóa đơn]=rngInvoice,ROW(Chi_tiết_hóa_đơn[])-ROW(Chi_tiết_hóa_đơn[#Headers])), ROW(20:20)), MATCH($F$8, Chi_tiết_hóa_đơn[#Headers], 0)),\"\")","v":""},""]
[null,{"$f":"IFERROR(INDEX(Chi_tiết_hóa_đơn[],SMALL(IF(Chi_tiết_hóa_đơn[Mã số hóa đơn]=rngInvoice,ROW(Chi_tiết_hóa_đơn[])-ROW(Chi_tiết_hóa_đơn[#Headers])), ROW(21:21)), MATCH($B$8, Chi_tiết_hóa_đơn[#Headers], 0)),\"\")","v":""},{"$f":"IFERROR(INDEX(Chi_tiết_hóa_đơn[],SMALL(IF(Chi_tiết_hóa_đơn[Mã số hóa đơn]=rngInvoice,ROW(Chi_tiết_hóa_đơn[])-ROW(Chi_tiết_hóa_đơn[#Headers])), ROW(21:21)), MATCH($C$8, Chi_tiết_hóa_đơn[#Headers], 0)),\"\")","v":""},{"$f":"IFERROR(INDEX(Chi_tiết_hóa_đơn[],SMALL(IF(Chi_tiết_hóa_đơn[Mã số hóa đơn]=rngInvoice,ROW(Chi_tiết_hóa_đơn[])-ROW(Chi_tiết_hóa_đơn[#Headers])), ROW(21:21)), MATCH($D$8, Chi_tiết_hóa_đơn[#Headers], 0)),\"\")","v":""},{"$f":"IFERROR(INDEX(Chi_tiết_hóa_đơn[],SMALL(IF(Chi_tiết_hóa_đơn[Mã số hóa đơn]=rngInvoice,ROW(Chi_tiết_hóa_đơn[])-ROW(Chi_tiết_hóa_đơn[#Headers])), ROW(21:21)), MATCH($E$8, Chi_tiết_hóa_đơn[#Headers], 0)),\"\")","v":""},{"$f":"IFERROR(INDEX(Chi_tiết_hóa_đơn[],SMALL(IF(Chi_tiết_hóa_đơn[Mã số hóa đơn]=rngInvoice,ROW(Chi_tiết_hóa_đơn[])-ROW(Chi_tiết_hóa_đơn[#Headers])), ROW(21:21)), MATCH($F$8, Chi_tiết_hóa_đơn[#Headers], 0)),\"\")","v":""},""]
[null,{"$f":"IFERROR(INDEX(Chi_tiết_hóa_đơn[],SMALL(IF(Chi_tiết_hóa_đơn[Mã số hóa đơn]=rngInvoice,ROW(Chi_tiết_hóa_đơn[])-ROW(Chi_tiết_hóa_đơn[#Headers])), ROW(22:22)), MATCH($B$8, Chi_tiết_hóa_đơn[#Headers], 0)),\"\")","v":""},{"$f":"IFERROR(INDEX(Chi_tiết_hóa_đơn[],SMALL(IF(Chi_tiết_hóa_đơn[Mã số hóa đơn]=rngInvoice,ROW(Chi_tiết_hóa_đơn[])-ROW(Chi_tiết_hóa_đơn[#Headers])), ROW(22:22)), MATCH($C$8, Chi_tiết_hóa_đơn[#Headers], 0)),\"\")","v":""},{"$f":"IFERROR(INDEX(Chi_tiết_hóa_đơn[],SMALL(IF(Chi_tiết_hóa_đơn[Mã số hóa đơn]=rngInvoice,ROW(Chi_tiết_hóa_đơn[])-ROW(Chi_tiết_hóa_đơn[#Headers])), ROW(22:22)), MATCH($D$8, Chi_tiết_hóa_đơn[#Headers], 0)),\"\")","v":""},{"$f":"IFERROR(INDEX(Chi_tiết_hóa_đơn[],SMALL(IF(Chi_tiết_hóa_đơn[Mã số hóa đơn]=rngInvoice,ROW(Chi_tiết_hóa_đơn[])-ROW(Chi_tiết_hóa_đơn[#Headers])), ROW(22:22)), MATCH($E$8, Chi_tiết_hóa_đơn[#Headers], 0)),\"\")","v":""},{"$f":"IFERROR(INDEX(Chi_tiết_hóa_đơn[],SMALL(IF(Chi_tiết_hóa_đơn[Mã số hóa đơn]=rngInvoice,ROW(Chi_tiết_hóa_đơn[])-ROW(Chi_tiết_hóa_đơn[#Headers])), ROW(22:22)), MATCH($F$8, Chi_tiết_hóa_đơn[#Headers], 0)),\"\")","v":""},""]
[null,{"$f":"IFERROR(INDEX(Chi_tiết_hóa_đơn[],SMALL(IF(Chi_tiết_hóa_đơn[Mã số hóa đơn]=rngInvoice,ROW(Chi_tiết_hóa_đơn[])-ROW(Chi_tiết_hóa_đơn[#Headers])), ROW(23:23)), MATCH($B$8, Chi_tiết_hóa_đơn[#Headers], 0)),\"\")","v":""},{"$f":"IFERROR(INDEX(Chi_tiết_hóa_đơn[],SMALL(IF(Chi_tiết_hóa_đơn[Mã số hóa đơn]=rngInvoice,ROW(Chi_tiết_hóa_đơn[])-ROW(Chi_tiết_hóa_đơn[#Headers])), ROW(23:23)), MATCH($C$8, Chi_tiết_hóa_đơn[#Headers], 0)),\"\")","v":""},{"$f":"IFERROR(INDEX(Chi_tiết_hóa_đơn[],SMALL(IF(Chi_tiết_hóa_đơn[Mã số hóa đơn]=rngInvoice,ROW(Chi_tiết_hóa_đơn[])-ROW(Chi_tiết_hóa_đơn[#Headers])), ROW(23:23)), MATCH($D$8, Chi_tiết_hóa_đơn[#Headers], 0)),\"\")","v":""},{"$f":"IFERROR(INDEX(Chi_tiết_hóa_đơn[],SMALL(IF(Chi_tiết_hóa_đơn[Mã số hóa đơn]=rngInvoice,ROW(Chi_tiết_hóa_đơn[])-ROW(Chi_tiết_hóa_đơn[#Headers])), ROW(23:23)), MATCH($E$8, Chi_tiết_hóa_đơn[#Headers], 0)),\"\")","v":""},{"$f":"IFERROR(INDEX(Chi_tiết_hóa_đơn[],SMALL(IF(Chi_tiết_hóa_đơn[Mã số hóa đơn]=rngInvoice,ROW(Chi_tiết_hóa_đơn[])-ROW(Chi_tiết_hóa_đơn[#Headers])), ROW(23:23)), MATCH($F$8, Chi_tiết_hóa_đơn[#Headers], 0)),\"\")","v":""},""]
[null,{"$f":"IFERROR(INDEX(Chi_tiết_hóa_đơn[],SMALL(IF(Chi_tiết_hóa_đơn[Mã số hóa đơn]=rngInvoice,ROW(Chi_tiết_hóa_đơn[])-ROW(Chi_tiết_hóa_đơn[#Headers])), ROW(24:24)), MATCH($B$8, Chi_tiết_hóa_đơn[#Headers], 0)),\"\")","v":""},{"$f":"IFERROR(INDEX(Chi_tiết_hóa_đơn[],SMALL(IF(Chi_tiết_hóa_đơn[Mã số hóa đơn]=rngInvoice,ROW(Chi_tiết_hóa_đơn[])-ROW(Chi_tiết_hóa_đơn[#Headers])), ROW(24:24)), MATCH($C$8, Chi_tiết_hóa_đơn[#Headers], 0)),\"\")","v":""},{"$f":"IFERROR(INDEX(Chi_tiết_hóa_đơn[],SMALL(IF(Chi_tiết_hóa_đơn[Mã số hóa đơn]=rngInvoice,ROW(Chi_tiết_hóa_đơn[])-ROW(Chi_tiết_hóa_đơn[#Headers])), ROW(24:24)), MATCH($D$8, Chi_tiết_hóa_đơn[#Headers], 0)),\"\")","v":""},{"$f":"IFERROR(INDEX(Chi_tiết_hóa_đơn[],SMALL(IF(Chi_tiết_hóa_đơn[Mã số hóa đơn]=rngInvoice,ROW(Chi_tiết_hóa_đơn[])-ROW(Chi_tiết_hóa_đơn[#Headers])), ROW(24:24)), MATCH($E$8, Chi_tiết_hóa_đơn[#Headers], 0)),\"\")","v":""},{"$f":"IFERROR(INDEX(Chi_tiết_hóa_đơn[],SMALL(IF(Chi_tiết_hóa_đơn[Mã số hóa đơn]=rngInvoice,ROW(Chi_tiết_hóa_đơn[])-ROW(Chi_tiết_hóa_đơn[#Headers])), ROW(24:24)), MATCH($F$8, Chi_tiết_hóa_đơn[#Headers], 0)),\"\")","v":""},""]
[null,{"$f":"IFERROR(INDEX(Chi_tiết_hóa_đơn[],SMALL(IF(Chi_tiết_hóa_đơn[Mã số hóa đơn]=rngInvoice,ROW(Chi_tiết_hóa_đơn[])-ROW(Chi_tiết_hóa_đơn[#Headers])), ROW(25:25)), MATCH($B$8, Chi_tiết_hóa_đơn[#Headers], 0)),\"\")","v":""},{"$f":"IFERROR(INDEX(Chi_tiết_hóa_đơn[],SMALL(IF(Chi_tiết_hóa_đơn[Mã số hóa đơn]=rngInvoice,ROW(Chi_tiết_hóa_đơn[])-ROW(Chi_tiết_hóa_đơn[#Headers])), ROW(25:25)), MATCH($C$8, Chi_tiết_hóa_đơn[#Headers], 0)),\"\")","v":""},{"$f":"IFERROR(INDEX(Chi_tiết_hóa_đơn[],SMALL(IF(Chi_tiết_hóa_đơn[Mã số hóa đơn]=rngInvoice,ROW(Chi_tiết_hóa_đơn[])-ROW(Chi_tiết_hóa_đơn[#Headers])), ROW(25:25)), MATCH($D$8, Chi_tiết_hóa_đơn[#Headers], 0)),\"\")","v":""},{"$f":"IFERROR(INDEX(Chi_tiết_hóa_đơn[],SMALL(IF(Chi_tiết_hóa_đơn[Mã số hóa đơn]=rngInvoice,ROW(Chi_tiết_hóa_đơn[])-ROW(Chi_tiết_hóa_đơn[#Headers])), ROW(25:25)), MATCH($E$8, Chi_tiết_hóa_đơn[#Headers], 0)),\"\")","v":""},{"$f":"IFERROR(INDEX(Chi_tiết_hóa_đơn[],SMALL(IF(Chi_tiết_hóa_đơn[Mã số hóa đơn]=rngInvoice,ROW(Chi_tiết_hóa_đơn[])-ROW(Chi_tiết_hóa_đơn[#Headers])), ROW(25:25)), MATCH($F$8, Chi_tiết_hóa_đơn[#Headers], 0)),\"\")","v":""},""]
[{"$nulls":5},"Tổng phụ Hóa đơn",{"$f":"SUM(Hoá_đơn_dự_án[Giá])","v":{"v":2014,"d":"2,014.00 ₫"}}]
[{"$nulls":5},"Thuế Suất",{"$f":"VLOOKUP(rngInvoice,Hoá_đơn_Chính[],5)","v":{"v":0.0875,"d":"8.75%"}}]
[{"$nulls":5},"Thuế Doanh thu",{"$f":"G34*G35","v":{"v":176.225,"d":"176.23 ₫"}}]
[{"$nulls":5},"Khác",{"$f":"VLOOKUP(rngInvoice,Hoá_đơn_Chính[],6)","v":0}]
[null,{"$f":"\"Thanh toán toàn bộ séc cho \"&Tên_công_ty&\".\"","v":"Thanh toán toàn bộ séc cho Tên công ty."},{"$nulls":3},"Tiền đặt cọc Đã nhận",{"$f":"VLOOKUP(rngInvoice,Hoá_đơn_Chính[],7)","v":0}]
[null,"Tổng số tiền phải thanh toán trong <#> ngày. Các tài khoản quá hạn chịu phí dịch vụ là <#>%/tháng.",{"$nulls":3},"TỔNG",{"$f":"(G34+G36+G37)-G38","v":{"v":2190.225,"d":"2,190.23 ₫"}}]

{"sheet":"Khách hàng","index":1,"n_rows":6,"n_cols":12,"rows_kept":6}
[]
[null,null,"Khách hàng"]
[null,"Tra cứu","Mã số công ty","Tên công ty","Tên Liên hệ","Địa chỉ","Thành phố","Tiểu bang","Mã ZIP","Điện thoại","Email","Fax"]
[null,{"$f":"C4& \" - \"&D4","v":"1 - Tailspin Toys "},1,"Tailspin Toys ","Robert Lyon","345 Cherry Street","Albany","SD","123456","432-555-0178","someone@example.com","432-555-0187"]
[null,"2 - Contoso, Ltd",2,"Contoso, Ltd","Sanjay Patel","567 Walnut Lane","Moline","MO","098765","432-555-0189","someone@example.com","432-555-0123"]
[null,"Tổng",{"$f":"\"Tổng khách hàng: \"&SUBTOTAL(103,Danh_sách_khách_hàng[Mã số công ty])","v":"Tổng khách hàng: 2"}]

{"sheet":"Hóa đơn - Chính","index":2,"n_rows":6,"n_cols":11,"rows_kept":6}
[]
[null,"Hóa đơn"]
[null,"Mã số hóa đơn","Công ty","Ngày lập hóa đơn","Mô tả Dự án","Thuế Suất","Khác","Tiền gửi","Tổng chi tiết","Tổng hóa đơn","Ghi chú"]
[null,"3-456-1","1 - Tailspin Toys ",{"$f":"TODAY()","v":{"v":43675,"d":"4367500.00%"}},"Dự án 1",{"v":0.0875,"d":"8.75%"},{"v":100,"d":"100.00 ₫"},{"v":100,"d":"100.00 ₫"},{"$f":"SUMIF(Chi_tiết_hóa_đơn[Mã số hóa đơn],\"=\"&Hoá_đơn_Chính[[#This Row],[Mã số hóa đơn]],Chi_tiết_hóa_đơn[Tổng])","v":{"v":5200,"d":"5,200.00 ₫"}},{"$f":"(Hoá_đơn_Chính[[#This Row],[Tổng chi tiết]]*(1+Hoá_đơn_Chính[[#This Row],[Thuế Suất]]))+Hoá_đơn_Chính[[#This Row],[Khác]]-Hoá_đơn_Chính[[#This Row],[Tiền gửi]]","v":{"v":5654.999999999999,"d":"5,655.00 ₫"}}]
[null,"3-456-2","2 - Contoso, Ltd",{"$f":"TODAY()+10","v":{"v":43685,"d":"4368500.00%"}},"Dự án 2",{"v":0.0875,"d":"8.75%"},null,null,{"$f":"SUMIF(Chi_tiết_hóa_đơn[Mã số hóa đơn],\"=\"&Hoá_đơn_Chính[[#This Row],[Mã số hóa đơn]],Chi_tiết_hóa_đơn[Tổng])","v":{"v":2014,"d":"2,014.00 ₫"}},{"$f":"(Hoá_đơn_Chính[[#This Row],[Tổng chi tiết]]*(1+Hoá_đơn_Chính[[#This Row],[Thuế Suất]]))+Hoá_đơn_Chính[[#This Row],[Khác]]-Hoá_đơn_Chính[[#This Row],[Tiền gửi]]","v":{"v":2190.225,"d":"2,190.23 ₫"}}]
[null,"Tổng",{"$f":"\"Tổng hóa đơn: \"&SUBTOTAL(103,Hoá_đơn_Chính[Mã số hóa đơn])","v":"Tổng hóa đơn: 2"},{"$nulls":3},{"$f":"SUBTOTAL(109,Hoá_đơn_Chính[Khác])","v":{"v":100,"d":"100.00 ₫"}},{"$f":"SUBTOTAL(109,Hoá_đơn_Chính[Tiền gửi])","v":{"v":100,"d":"100.00 ₫"}},{"$f":"SUBTOTAL(109,Hoá_đơn_Chính[Tổng chi tiết])","v":{"v":7214,"d":"7,214.00 ₫"}},{"$f":"SUBTOTAL(109,Hoá_đơn_Chính[Tổng hóa đơn])","v":{"v":7845.2249999999985,"d":"7,845.23 ₫"}}]

{"sheet":"Chi tiết hóa đơn","index":3,"n_rows":40,"n_cols":8,"rows_kept":40}
[]
[null,"Chi tiết hóa đơn"]
[null,"Mô tả","Mã số hóa đơn","Số khoản mục","SL","Đơn Giá","Chiết khấu","Tổng"]
[null,"Hóa đơn 3-456-1 Dữ liệu 1","3-456-1",1,1,{"v":1,"d":"1.00 ₫"},{"v":1,"d":"1.00 ₫"},{"$f":"(Chi_tiết_hóa_đơn[[#This Row],[SL]]*Chi_tiết_hóa_đơn[[#This Row],[Đơn Giá]])-Chi_tiết_hóa_đơn[[#This Row],[Chiết khấu]]","v":{"v":0,"d":"0.00 ₫"}}]
[null,"Hóa đơn 3-456-1 Dữ liệu 2","3-456-1",2,2,{"v":2,"d":"2.00 ₫"},{"v":2,"d":"2.00 ₫"},{"$f":"(Chi_tiết_hóa_đơn[[#This Row],[SL]]*Chi_tiết_hóa_đơn[[#This Row],[Đơn Giá]])-Chi_tiết_hóa_đơn[[#This Row],[Chiết khấu]]","v":{"v":2,"d":"2.00 ₫"}}]
[null,"Hóa đơn 3-456-1 Dữ liệu 3","3-456-1",3,3,{"v":3,"d":"3.00 ₫"},{"v":3,"d":"3.00 ₫"},{"$f":"(Chi_tiết_hóa_đơn[[#This Row],[SL]]*Chi_tiết_hóa_đơn[[#This Row],[Đơn Giá]])-Chi_tiết_hóa_đơn[[#This Row],[Chiết khấu]]","v":{"v":6,"d":"6.00 ₫"}}]
[null,"Hóa đơn 3-456-1 Dữ liệu 4","3-456-1",4,4,{"v":4,"d":"4.00 ₫"},{"v":4,"d":"4.00 ₫"},{"$f":"(Chi_tiết_hóa_đơn[[#This Row],[SL]]*Chi_tiết_hóa_đơn[[#This Row],[Đơn Giá]])-Chi_tiết_hóa_đơn[[#This Row],[Chiết khấu]]","v":{"v":12,"d":"12.00 ₫"}}]
[null,"Hóa đơn 3-456-1 Dữ liệu 5","3-456-1",5,5,{"v":5,"d":"5.00 ₫"},{"v":5,"d":"5.00 ₫"},{"$f":"(Chi_tiết_hóa_đơn[[#This Row],[SL]]*Chi_tiết_hóa_đơn[[#This Row],[Đơn Giá]])-Chi_tiết_hóa_đơn[[#This Row],[Chiết khấu]]","v":{"v":20,"d":"20.00 ₫"}}]
[null,"Hóa đơn 3-456-1 Dữ liệu 6","3-456-1",6,6,{"v":6,"d":"6.00 ₫"},{"v":6,"d":"6.00 ₫"},{"$f":"(Chi_tiết_hóa_đơn[[#This Row],[SL]]*Chi_tiết_hóa_đơn[[#This Row],[Đơn Giá]])-Chi_tiết_hóa_đơn[[#This Row],[Chiết khấu]]","v":{"v":30,"d":"30.00 ₫"}}]
[null,"Hóa đơn 3-456-1 Dữ liệu 7","3-456-1",7,7,{"v":7,"d":"7.00 ₫"},{"v":7,"d":"7.00 ₫"},{"$f":"(Chi_tiết_hóa_đơn[[#This Row],[SL]]*Chi_tiết_hóa_đơn[[#This Row],[Đơn Giá]])-Chi_tiết_hóa_đơn[[#This Row],[Chiết khấu]]","v":{"v":42,"d":"42.00 ₫"}}]
[null,"Hóa đơn 3-456-1 Dữ liệu 8","3-456-1",8,8,{"v":8,"d":"8.00 ₫"},{"v":8,"d":"8.00 ₫"},{"$f":"(Chi_tiết_hóa_đơn[[#This Row],[SL]]*Chi_tiết_hóa_đơn[[#This Row],[Đơn Giá]])-Chi_tiết_hóa_đơn[[#This Row],[Chiết khấu]]","v":{"v":56,"d":"56.00 ₫"}}]
[null,"Hóa đơn 3-456-1 Dữ liệu 9","3-456-1",9,9,{"v":9,"d":"9.00 ₫"},{"v":9,"d":"9.00 ₫"},{"$f":"(Chi_tiết_hóa_đơn[[#This Row],[SL]]*Chi_tiết_hóa_đơn[[#This Row],[Đơn Giá]])-Chi_tiết_hóa_đơn[[#This Row],[Chiết khấu]]","v":{"v":72,"d":"72.00 ₫"}}]
[null,"Hóa đơn 3-456-1 Dữ liệu 10","3-456-1",10,10,{"v":10,"d":"10.00 ₫"},{"v":10,"d":"10.00 ₫"},{"$f":"(Chi_tiết_hóa_đơn[[#This Row],[SL]]*Chi_tiết_hóa_đơn[[#This Row],[Đơn Giá]])-Chi_tiết_hóa_đơn[[#This Row],[Chiết khấu]]","v":{"v":90,"d":"90.00 ₫"}}]
[null,"Hóa đơn 3-456-1 Dữ liệu 11","3-456-1",11,11,{"v":11,"d":"11.00 ₫"},{"v":11,"d":"11.00 ₫"},{"$f":"(Chi_tiết_hóa_đơn[[#This Row],[SL]]*Chi_tiết_hóa_đơn[[#This Row],[Đơn Giá]])-Chi_tiết_hóa_đơn[[#This Row],[Chiết khấu]]","v":{"v":110,"d":"110.00 ₫"}}]
[null,"Hóa đơn 3-456-1 Dữ liệu 12","3-456-1",12,12,{"v":12,"d":"12.00 ₫"},{"v":12,"d":"12.00 ₫"},{"$f":"(Chi_tiết_hóa_đơn[[#This Row],[SL]]*Chi_tiết_hóa_đơn[[#This Row],[Đơn Giá]])-Chi_tiết_hóa_đơn[[#This Row],[Chiết khấu]]","v":{"v":132,"d":"132.00 ₫"}}]
[null,"Hóa đơn 3-456-1 Dữ liệu 13","3-456-1",13,13,{"v":13,"d":"13.00 ₫"},{"v":13,"d":"13.00 ₫"},{"$f":"(Chi_tiết_hóa_đơn[[#This Row],[SL]]*Chi_tiết_hóa_đơn[[#This Row],[Đơn Giá]])-Chi_tiết_hóa_đơn[[#This Row],[Chiết khấu]]","v":{"v":156,"d":"156.00 ₫"}}]
[null,"Hóa đơn 3-456-1 Dữ liệu 14","3-456-1",14,14,{"v":14,"d":"14.00 ₫"},{"v":14,"d":"14.00 ₫"},{"$f":"(Chi_tiết_hóa_đơn[[#This Row],[SL]]*Chi_tiết_hóa_đơn[[#This Row],[Đơn Giá]])-Chi_tiết_hóa_đơn[[#This Row],[Chiết khấu]]","v":{"v":182,"d":"182.00 ₫"}}]
[null,"Hóa đơn 3-456-1 Dữ liệu 15","3-456-1",15,15,{"v":15,"d":"15.00 ₫"},{"v":15,"d":"15.00 ₫"},{"$f":"(Chi_tiết_hóa_đơn[[#This Row],[SL]]*Chi_tiết_hóa_đơn[[#This Row],[Đơn Giá]])-Chi_tiết_hóa_đơn[[#This Row],[Chiết khấu]]","v":{"v":210,"d":"210.00 ₫"}}]
[null,"Hóa đơn 3-456-1 Dữ liệu 16","3-456-1",16,16,{"v":16,"d":"16.00 ₫"},{"v":16,"d":"16.00 ₫"},{"$f":"(Chi_tiết_hóa_đơn[[#This Row],[SL]]*Chi_tiết_hóa_đơn[[#This Row],[Đơn Giá]])-Chi_tiết_hóa_đơn[[#This Row],[Chiết khấu]]","v":{"v":240,"d":"240.00 ₫"}}]
[null,"Hóa đơn 3-456-1 Dữ liệu 17","3-456-1",17,17,{"v":17,"d":"17.00 ₫"},{"v":17,"d":"17.00 ₫"},{"$f":"(Chi_tiết_hóa_đơn[[#This Row],[SL]]*Chi_tiết_hóa_đơn[[#This Row],[Đơn Giá]])-Chi_tiết_hóa_đơn[[#This Row],[Chiết khấu]]","v":{"v":272,"d":"272.00 ₫"}}]
[null,"Hóa đơn 3-456-1 Dữ liệu 18","3-456-1",18,18,{"v":18,"d":"18.00 ₫"},{"v":18,"d":"18.00 ₫"},{"$f":"(Chi_tiết_hóa_đơn[[#This Row],[SL]]*Chi_tiết_hóa_đơn[[#This Row],[Đơn Giá]])-Chi_tiết_hóa_đơn[[#This Row],[Chiết khấu]]","v":{"v":306,"d":"306.00 ₫"}}]
[null,"Hóa đơn 3-456-1 Dữ liệu 19","3-456-1",19,19,{"v":19,"d":"19.00 ₫"},{"v":19,"d":"19.00 ₫"},{"$f":"(Chi_tiết_hóa_đơn[[#This Row],[SL]]*Chi_tiết_hóa_đơn[[#This Row],[Đơn Giá]])-Chi_tiết_hóa_đơn[[#This Row],[Chiết khấu]]","v":{"v":342,"d":"342.00 ₫"}}]
[null,"Hóa đơn 3-456-1 Dữ liệu 20","3-456-1",20,20,{"v":20,"d":"20.00 ₫"},{"v":20,"d":"20.00 ₫"},{"$f":"(Chi_tiết_hóa_đơn[[#This Row],[SL]]*Chi_tiết_hóa_đơn[[#This Row],[Đơn Giá]])-Chi_tiết_hóa_đơn[[#This Row],[Chiết khấu]]","v":{"v":380,"d":"380.00 ₫"}}]
[null,"Hóa đơn 3-456-1 Dữ liệu 21","3-456-1",21,21,{"v":21,"d":"21.00 ₫"},{"v":21,"d":"21.00 ₫"},{"$f":"(Chi_tiết_hóa_đơn[[#This Row],[SL]]*Chi_tiết_hóa_đơn[[#This Row],[Đơn Giá]])-Chi_tiết_hóa_đơn[[#This Row],[Chiết khấu]]","v":{"v":420,"d":"420.00 ₫"}}]
[null,"Hóa đơn 3-456-1 Dữ liệu 22","3-456-1",22,22,{"v":22,"d":"22.00 ₫"},{"v":22,"d":"22.00 ₫"},{"$f":"(Chi_tiết_hóa_đơn[[#This Row],[SL]]*Chi_tiết_hóa_đơn[[#This Row],[Đơn Giá]])-Chi_tiết_hóa_đơn[[#This Row],[Chiết khấu]]","v":{"v":462,"d":"462.00 ₫"}}]
[null,"Hóa đơn 3-456-1 Dữ liệu 23","3-456-1",23,23,{"v":23,"d":"23.00 ₫"},{"v":23,"d":"23.00 ₫"},{"$f":"(Chi_tiết_hóa_đơn[[#This Row],[SL]]*Chi_tiết_hóa_đơn[[#This Row],[Đơn Giá]])-Chi_tiết_hóa_đơn[[#This Row],[Chiết khấu]]","v":{"v":506,"d":"506.00 ₫"}}]
[null,"Hóa đơn 3-456-1 Dữ liệu 24","3-456-1",24,24,{"v":24,"d":"24.00 ₫"},{"v":24,"d":"24.00 ₫"},{"$f":"(Chi_tiết_hóa_đơn[[#This Row],[SL]]*Chi_tiết_hóa_đơn[[#This Row],[Đơn Giá]])-Chi_tiết_hóa_đơn[[#This Row],[Chiết khấu]]","v":{"v":552,"d":"552.00 ₫"}}]
[null,"Hóa đơn 3-456-1 Dữ liệu 25","3-456-1",25,25,{"v":25,"d":"25.00 ₫"},{"v":25,"d":"25.00 ₫"},{"$f":"(Chi_tiết_hóa_đơn[[#This Row],[SL]]*Chi_tiết_hóa_đơn[[#This Row],[Đơn Giá]])-Chi_tiết_hóa_đơn[[#This Row],[Chiết khấu]]","v":{"v":600,"d":"600.00 ₫"}}]
[null,"Hóa đơn 3-456-2 Dữ liệu 1","3-456-2","Z4567",39,{"v":5,"d":"5.00 ₫"},null,{"$f":"(Chi_tiết_hóa_đơn[[#This Row],[SL]]*Chi_tiết_hóa_đơn[[#This Row],[Đơn Giá]])-Chi_tiết_hóa_đơn[[#This Row],[Chiết khấu]]","v":{"v":195,"d":"195.00 ₫"}}]
[null,"Hóa đơn 3-456-2 Dữ liệu 2","3-456-2","Z4568",40,{"v":4,"d":"4.00 ₫"},{"v":5,"d":"5.00 ₫"},{"$f":"(Chi_tiết_hóa_đơn[[#This Row],[SL]]*Chi_tiết_hóa_đơn[[#This Row],[Đơn Giá]])-Chi_tiết_hóa_đơn[[#This Row],[Chiết khấu]]","v":{"v":155,"d":"155.00 ₫"}}]
[null,"Hóa đơn 3-456-2 Dữ liệu 3","3-456-2","Z4569",30,{"v":6,"d":"6.00 ₫"},{"v":7,"d":"7.00 ₫"},{"$f":"(Chi_tiết_hóa_đơn[[#This Row],[SL]]*Chi_tiết_hóa_đơn[[#This Row],[Đơn Giá]])-Chi_tiết_hóa_đơn[[#This Row],[Chiết khấu]]","v":{"v":173,"d":"173.00 ₫"}}]
[null,"Hóa đơn 3-456-2 Dữ liệu 4","3-456-2","Z4570",40,{"v":7,"d":"7.00 ₫"},null,{"$f":"(Chi_tiết_hóa_đơn[[#This Row],[SL]]*Chi_tiết_hóa_đơn[[#This Row],[Đơn Giá]])-Chi_tiết_hóa_đơn[[#This Row],[Chiết khấu]]","v":{"v":280,"d":"280.00 ₫"}}]
[null,"Hóa đơn 3-456-2 Dữ liệu 5","3-456-2","Z4571",10,{"v":4,"d":"4.00 ₫"},null,{"$f":"(Chi_tiết_hóa_đơn[[#This Row],[SL]]*Chi_tiết_hóa_đơn[[#This Row],[Đơn Giá]])-Chi_tiết_hóa_đơn[[#This Row],[Chiết khấu]]","v":{"v":40,"d":"40.00 ₫"}}]
[null,"Hóa đơn 3-456-2 Dữ liệu 6","3-456-2","Z4572",5,{"v":8,"d":"8.00 ₫"},null,{"$f":"(Chi_tiết_hóa_đơn[[#This Row],[SL]]*Chi_tiết_hóa_đơn[[#This Row],[Đơn Giá]])-Chi_tiết_hóa_đơn[[#This Row],[Chiết khấu]]","v":{"v":40,"d":"40.00 ₫"}}]
[null,"Hóa đơn 3-456-2 Dữ liệu 7","3-456-2","Z4573",70,{"v":6,"d":"6.00 ₫"},null,{"$f":"(Chi_tiết_hóa_đơn[[#This Row],[SL]]*Chi_tiết_hóa_đơn[[#This Row],[Đơn Giá]])-Chi_tiết_hóa_đơn[[#This Row],[Chiết khấu]]","v":{"v":420,"d":"420.00 ₫"}}]
[null,"Hóa đơn 3-456-2 Dữ liệu 8","3-456-2","Z4574",25,{"v":4,"d":"4.00 ₫"},null,{"$f":"(Chi_tiết_hóa_đơn[[#This Row],[SL]]*Chi_tiết_hóa_đơn[[#This Row],[Đơn Giá]])-Chi_tiết_hóa_đơn[[#This Row],[Chiết khấu]]","v":{"v":100,"d":"100.00 ₫"}}]
[null,"Hóa đơn 3-456-2 Dữ liệu 9","3-456-2","Z4575",5,{"v":7,"d":"7.00 ₫"},{"v":3,"d":"3.00 ₫"},{"$f":"(Chi_tiết_hóa_đơn[[#This Row],[SL]]*Chi_tiết_hóa_đơn[[#This Row],[Đơn Giá]])-Chi_tiết_hóa_đơn[[#This Row],[Chiết khấu]]","v":{"v":32,"d":"32.00 ₫"}}]
[null,"Hóa đơn 3-456-2 Dữ liệu 10","3-456-2","Z4576",80,{"v":1,"d":"1.00 ₫"},null,{"$f":"(Chi_tiết_hóa_đơn[[#This Row],[SL]]*Chi_tiết_hóa_đơn[[#This Row],[Đơn Giá]])-Chi_tiết_hóa_đơn[[#This Row],[Chiết khấu]]","v":{"v":80,"d":"80.00 ₫"}}]
[null,"Hóa đơn 3-456-2 Dữ liệu 11","3-456-2","Z4577",65,{"v":7,"d":"7.00 ₫"},null,{"$f":"(Chi_tiết_hóa_đơn[[#This Row],[SL]]*Chi_tiết_hóa_đơn[[#This Row],[Đơn Giá]])-Chi_tiết_hóa_đơn[[#This Row],[Chiết khấu]]","v":{"v":455,"d":"455.00 ₫"}}]
[null,"Hóa đơn 3-456-2 Dữ liệu 12","3-456-2","Z4578",44,{"v":1,"d":"1.00 ₫"},null,{"$f":"(Chi_tiết_hóa_đơn[[#This Row],[SL]]*Chi_tiết_hóa_đơn[[#This Row],[Đơn Giá]])-Chi_tiết_hóa_đơn[[#This Row],[Chiết khấu]]","v":{"v":44,"d":"44.00 ₫"}}]

{"sheet":"Giới thiệu về Bảng theo dõi...","index":4,"n_rows":40,"n_cols":3,"rows_kept":40,"merged":[[3,1,3,7],[4,1,4,7],[5,1,5,7],[6,1,6,7],[7,2,7,7],[8,2,8,7],[9,2,9,7],[10,2,10,7],[11,2,11,7],[12,1,12,7],[13,2,13,3],[14,2,14,7],[15,1,15,7],[16,2,16,7],[17,2,17,7],[18,2,18,7],[19,2,19,7],[20,2,20,7],[21,2,21,7],[22,1,22,7],[23,1,23,7],[24,2,24,7],[25,2,25,7],[26,2,26,7],[27,2,27,7],[28,1,28,7],[29,1,29,7],[30,2,30,7],[31,2,31,7],[32,2,32,7],[33,2,33,7],[34,2,34,7],[36,2,36,7],[37,2,37,7],[38,2,38,7],[39,2,39,7]]}
[null,"Giới thiệu về Bảng theo dõi hóa đơn này"]
[]
[]
[null,"Bảng theo dõi hóa đơn này được thiết kế để duy trì lịch sử của khách hàng, hóa đơn và chi tiết hóa đơn để bạn có thể lưu trữ nhiều hóa đơn mà không cần tạo nhiều tệp. Bạn cũng có thể sử dụng Bảng theo dõi hóa đơn để phân tích dữ liệu được lập hóa đơn trước đó. Ví dụ: bạn có thể xem tất cả các hóa đơn cho một khách hàng, một dự án cụ thể hay xem tất cả các hóa đơn cho tháng trước, năm trước và nhiều thông tin khác."]
[null,"Trước khi bạn bắt đầu, hãy xem dữ liệu mẫu được cung cấp. Trên trang tính Hóa đơn, hãy chọn ô ở bên phải của Mã số hóa đơn (ô L8) và danh sách thả xuống sẽ xuất hiện. Chọn mũi tên thả xuống, rồi chọn một hóa đơn mẫu. Hãy lưu ý cách tất cả các thông tin hóa đơn tự động thay đổi để phản ánh hóa đơn đã chọn. Bây giờ hãy xem các trang tính Khách hàng, Hóa đơn - Chính, và Chi tiết Hóa đơn. Từng trang tính này cung cấp thông tin cho Hóa đơn và mọi thay đổi bạn thực hiện đều sẽ được cập nhật tự động. "]
[null,"Làm thế nào để bắt đầu?"]
[null,"Sửa đổi trang tính Hóa đơn để phản ánh thông tin công ty của bạn bằng các bước sau đây:"]
[null,"1.","Dẫn hướng đến trang tính Hóa đơn , và trên tab Xem lại, trong nhóm Bảo vệ, chọn Bỏ bảo vệ Trang tính. "]
[null,null,"Lưu ý: Trang tính Hóa đơn sẽ được bảo vệ để giúp tránh những thay đổi không chủ ý, vì như đã đề cập ở phần trên, phần lớn dữ liệu trên trang tính này được lấy từ tất cả các trang tính khác trong sổ làm việc. "]
[null,"2.","Tùy chỉnh tiêu đề hóa đơn bằng cách nhập Tên Công ty, Địa chỉ Đường, Thành phố, ZIP Tiểu bang, địa chỉ email, trang web, v.v. Ở cuối hóa đơn (hàng 43), hãy sửa đổi hướng dẫn thanh toán. "]
[null,null,"Quan trọng! Đừng sửa đổi thông tin thanh toán hoặc hóa đơn. Tất cả các ô này đều có công thức để tự động cập nhật hóa đơn, như đã lưu ý trong phần Giới thiệu về Bảng theo dõi hóa đơn này. "]
[null,"3.","(Tùy chọn) Sửa đổi màu sắc trong toàn bộ sổ làm việc: Trên tab Bố trí Trang, trong nhóm Chủ đề, chọn Màu và chọn một bộ màu chủ đề khác từ bộ sưu tập màu. "]
[null,"Mẹo: Tạo một bộ màu chủ đề tùy chỉnh để phù hợp với thương hiệu của công ty bạn! Để thực hiện, trên tab Bố trí Trang, trong nhóm Chủ đề, hãy chọn Màu, sau đó chọn Tùy chỉnh Màu. Để biết thêm về cách tạo một bộ màu tùy chỉnh, hãy xem chủ đề Trợ giúp sau: "]
[null,null,"Tùy chỉnh chủ đề tài liệu."]
[null,"4.","Sau khi bạn đã thực hiện các thay đổi mong muốn, hãy quay lại trang tính Hóa đơn và trên tab Xem xét, trong nhóm Thay đổi, hãy chọn Bảo vệ Trang tính, rồi chọn OK. Khi trang tính Hóa đơn được bảo vệ, ô duy nhất bạn có thể chọn là ô có chứa Mã số hóa đơn thả xuống."]
[null,"Làm thế nào để tạo hóa đơn?"]
[null,"1.","Trên trang tính Khách hàng, hãy nhập thông tin khách hàng, chẳng hạn như tên và địa chỉ công ty. Lưu ý rằng Mã số công ty là một mục nhập quan trọng vì nó cung cấp một mã định danh duy nhất cho mỗi công ty, được sử dụng trong toàn bộ Bảng theo dõi hóa đơn. Ngoài ra, xin lưu ý rằng bạn chỉ cần thêm mỗi công ty một lần. Đối với các hóa đơn tiếp theo cho cùng một công ty, bạn có thể bỏ qua bước này. "]
[null,null,"Lưu ý: Nếu bạn gán cùng một mã số cho nhiều hơn một công ty hay nhập cùng một Tên Công ty nhiều lần, các mục nhập sẽ chuyển sang màu đỏ để báo cho bạn biết về việc trùng lặp. "]
[null,"2.","Trên trang tính Hóa đơn - Chính, hãy nhập thông tin chính cho hóa đơn của bạn, chẳng hạn như Mã số hóa đơn, Ngày lập Hóa đơn và Mô tả Dự án. Giống như Mã số công ty, Mã số hóa đơn là một mục nhập quan trọng vì nó cung cấp một mã định danh duy nhất cho từng hóa đơn và được sử dụng trong toàn bộ Bảng theo dõi hóa đơn. Một mục nhập quan trọng khác là Công ty. Khi bạn chọn một công ty từ danh sách thả xuống được cung cấp, hóa đơn của bạn sẽ được liên kết với công ty đó. Sau đó, khi bạn chọn một Mã số hóa đơn trên trang tính Hóa đơn, thông tin của công ty đó, chẳng hạn như tên và địa chỉ công ty, sẽ tự động được điền vào Hóa đơn."]
[null,null,"Lưu ý: Nếu bạn gán cùng một mã số cho nhiều hơn một Hóa đơn thì các mục nhập sẽ chuyển sang màu đỏ để báo cho bạn biết về việc trùng lặp. "]
[null,"3.","Trên trang tính Chi tiết Hóa đơn, hãy nhập thông tin chi tiết cho hóa đơn của bạn, chẳng hạn như Mô tả mục, Mã số mục, SL và Đơn giá. Mã số hóa đơn thả xuống cung cấp danh sách các hóa đơn mà bạn đã nhập trên trang tính Hóa đơn - Chính để tạo điều kiện cho việc nhập dữ liệu. Tương tự như Mã số công ty ở bước trước, Mã số hóa đơn liên kết mục chi tiết đó với một hóa đơn cụ thể. Khi bạn chọn một Mã số hóa đơn trên trang tính Hóa đơn từ Mã số hóa đơn thả xuống, các mục chi tiết hóa đơn liên quan sẽ xuất hiện cho hóa đơn đó."]
[null,null,"Lưu ý: Bạn bị giới hạn ở 25 mục chi tiết cho mỗi hóa đơn. Nếu thêm vào hơn 25 mục, tất cả các mục nhập tương ứng sẽ chuyển sang màu đỏ để báo cho bạn biết về giới hạn này. Nếu bạn có nhiều hơn 25 mục hóa đơn thì bạn sẽ cần tạo hóa đơn thứ hai. "]
[null,"Làm thế nào để thêm nhiều khách hàng, hóa đơn và chi tiết hóa đơn?"]
[null,"Dữ liệu Khách hàng, Hóa đơn và Chi tiết Hóa đơn được lưu trữ trong bảng Excel. Khi bạn thêm một hàng mới vào bảng, hàng mới được thêm vào sẽ được định dạng tự động và mọi phép tính sẽ được sao chép. Để thêm hàng mới vào bảng, hãy thực hiện một trong các bước sau:"]
[null,"● ","Nếu bảng không chứa hàng Tổng, hãy bắt đầu nhập ở dưới bảng, bảng sẽ tự động bung rộng khi bạn nhấn vào phím Enter hoặc Tab."]
[null,"● ","Đặt con trỏ ô vào ô cuối cùng phía trên hàng Tổng, chẳng hạn trong bảng Hóa đơn trong ô Ghi chú cho hóa đơn cuối cùng, rồi nhấn Tab."]
[null,"● ","Trên tab Trang đầu, trong nhóm Ô, hãy chọn Chèn, rồi chọn Hàng Bảng Trên hoặc Hàng Bảng Dưới. "]
[null,"● ","Ở góc dưới cùng bên phải của bảng, đặt con trỏ trên núm điều khiển đổi cỡ bảng và kéo xuống để tăng số hàng có trong bảng."]
[null,"Làm thế nào để phân tích chi tiết hóa đơn?"]
[null,"Như đã lưu ý trong phần Giới thiệu về Bảng theo dõi hóa đơn, sau khi bạn đã nhập một số hóa đơn, bạn có thể xem danh sách tất cả các hóa đơn cho một khách hàng, dự án cụ thể, một khoảng ngày cụ thể, và nhiều thông tin khác. Loại phân tích này được thực hiện bằng cách sử dụng bộ lọc cho phép bạn nhanh chóng thu hẹp danh sách dữ liệu. Để truy nhập vào một Bộ lọc trên các bảng Khách hàng, Hóa đơn hoặc Chi tiết Hóa đơn, hãy chọn mũi tên thả xuống bên cạnh tên trường của bảng bất kỳ. Ngăn Lọc sẽ hiển thị cho bạn hàng loạt các tùy chọn lọc. Đây là một vài ví dụ về bộ lọc nhằm giúp bạn bắt đầu:"]
[null,"● ","Để xem tổng số tiền bạn đã lập hóa đơn cho một khách hàng cụ thể: Trên trang tính Hóa đơn - Chính, bên phải trường Mã số Công ty, hãy chọn mũi tên thả xuống. Trong ngăn Lọc, hãy bấm vào Chọn Tất cả để bỏ chọn tất cả các công ty, chọn công ty mong muốn, rồi chọn OK. "]
[null,null,"Mẹo: Trong ngăn Lọc, bạn cũng có thể nhập tên khách hàng vào hộp văn bản Tìm kiếm để nhanh chóng tìm kiếm danh sách có sẵn."]
[null,"● ","Để xem tất cả các hóa đơn cho một khách hàng cụ thể và (các) dự án cụ thể: Bắt đầu bằng cách lọc ra khách hàng bạn muốn bằng các bước được cung cấp trong ví dụ trước. Sau đó, ở bên phải của Mã số dự án, hãy chọn mũi tên thả xuống. Trong ngăn Lọc, hãy chọn dự án hoặc các dự án mong muốn, rồi chọn OK. "]
[null,"● ","Để xem tất cả các hóa đơn cho tháng trước: Trên trang tính Hóa đơn - Chính, ở bên phải trường Ngày lập Hóa đơn, hãy chọn mũi tên thả xuống, trỏ đến Bộ lọc Ngày, rồi chọn Tháng Trước."]
[null,"● ","Để xem tất cả các khách hàng có cùng mã vùng: Trên trang tính Khách hàng, bên phải trường Điện thoại, hãy chọn mũi tên thả xuống. Trong ngăn Lọc, hãy bấm vào hộp văn bản Tìm kiếm, nhập mã vùng, rồi chọn OK. "]
[null,"Mẹo Lọc"]
[null,"● ","Nếu bảng chứa hàng tổng, chẳng hạn như Khách hàng và Hóa đơn, tổng được tính toán sẽ chỉ phản ánh danh sách đã lọc của bạn."]
[null,"● ","Hãy sử dụng nhiều bộ lọc trên một trường đơn hoặc trên nhiều trường để tinh chỉnh kết quả của mình."]
[null,"● ","Để xóa một bộ lọc duy nhất, hãy chọn mũi tên thả xuống đối với cột đã lọc trước đây, rồi chọn Xóa Bộ lọc từ <tên trường>."]
[null,"● ","Để xóa nhiều bộ lọc cùng một lúc, hãy đặt con trỏ ô vào bảng, trên tab Trang đầu, trong nhóm Chỉnh sửa, chọn Sắp xếp & Lọc, rồi chọn Xóa."]